[Event "Early-Titled-Tuesday-Blitz-April-23-2024"]
[Site "Chess.com"]
[Date "2024.04.23"]
[Round "8"]
[White "nekotyanof"]
[Black "Abund"]
[Result "1/2-1/2"]
[WhiteElo "2672"]
[BlackElo "2801"]
[TimeControl "180+1"]
[EndTime "9:34:37 PDT"]
[Termination "Game drawn - insufficient material"]

1. e4 {[%clk 0:03:00.9]} 1... c6 {[%clk 0:02:59.9]} 2. Nc3 {[%clk 0:02:58.1]}
2... d5 {[%clk 0:03:00.8]} 3. Nf3 {[%clk 0:02:58.3]} 3... dxe4 {[%clk
0:03:01.7]} 4. Nxe4 {[%clk 0:02:58.5]} 4... Nf6 {[%clk 0:03:01.8]} 5. Qe2 {[%clk
0:02:59.2]} 5... Nxe4 {[%clk 0:03:01.4]} 6. Qxe4 {[%clk 0:03:00.1]} 6... Nd7
{[%clk 0:03:02.1]} 7. Bc4 {[%clk 0:03:00.8]} 7... Nf6 {[%clk 0:03:02.8]} 8. Ne5
{[%clk 0:03:01.5]} 8... e6 {[%clk 0:03:03.4]} 9. Qe2 {[%clk 0:03:02.2]} 9... b5
{[%clk 0:03:04.1]} 10. Bb3 {[%clk 0:03:02.3]} 10... Qc7 {[%clk 0:03:04.8]} 11.
O-O {[%clk 0:03:02.8]} 11... Bd6 {[%clk 0:03:04.4]} 12. d4 {[%clk 0:03:03.5]}
12... O-O {[%clk 0:03:05]} 13. c3 {[%clk 0:03:03.6]} 13... a5 {[%clk 0:03:03.2]}
14. a4 {[%clk 0:03:00.7]} 14... bxa4 {[%clk 0:02:45.1]} 15. Rxa4 {[%clk
0:02:59.3]} 15... c5 {[%clk 0:02:41]} 16. Bg5 {[%clk 0:02:54.8]} 16... Nd5
{[%clk 0:02:23]} 17. Nf3 {[%clk 0:01:17.3]} 17... Ba6 {[%clk 0:01:48.1]} 18. c4
{[%clk 0:01:16.7]} 18... cxd4 {[%clk 0:01:40.1]} 19. Nxd4 {[%clk 0:00:54.7]}
19... Bxh2+ {[%clk 0:01:20.1]} 20. Kh1 {[%clk 0:00:53.8]} 20... Bf4 {[%clk
0:01:20.7]} 21. Nxe6 {[%clk 0:00:46]} 21... fxe6 {[%clk 0:01:07.4]} 22. Qxe6+
{[%clk 0:00:45]} 22... Qf7 {[%clk 0:00:55]} 23. Qxf7+ {[%clk 0:00:14.9]} 23...
Kxf7 {[%clk 0:00:30.3]} 24. Rd1 {[%clk 0:00:10.1]} 24... Bxg5 {[%clk 0:00:25.4]}
25. Rxd5 {[%clk 0:00:10.4]} 25... Bf6 {[%clk 0:00:18]} 26. Rdxa5 {[%clk
0:00:09.5]} 26... Bb7 {[%clk 0:00:18.5]} 27. c5+ {[%clk 0:00:10]} 27... Ke7
{[%clk 0:00:10.9]} 28. Ra7 {[%clk 0:00:09.9]} 28... Rxa7 {[%clk 0:00:05.9]} 29.
Rxa7 {[%clk 0:00:10.8]} 29... Rb8 {[%clk 0:00:04.7]} 30. Bd5 {[%clk 0:00:10.3]}
30... Bxb2 {[%clk 0:00:04.1]} 31. Bxb7 {[%clk 0:00:09.3]} 31... Kf6 {[%clk
0:00:03.9]} 32. Bd5 {[%clk 0:00:09.2]} 32... Be5 {[%clk 0:00:04]} 33. g3 {[%clk
0:00:08.2]} 33... g5 {[%clk 0:00:03.7]} 34. Rxh7 {[%clk 0:00:07.7]} 34... Rb5
{[%clk 0:00:04.1]} 35. Rf7+ {[%clk 0:00:04.3]} 35... Kg6 {[%clk 0:00:04.6]} 36.
Rf3 {[%clk 0:00:05]} 36... Rxc5 {[%clk 0:00:04.8]} 37. Be4+ {[%clk 0:00:05.9]}
37... Kg7 {[%clk 0:00:05.3]} 38. Kg2 {[%clk 0:00:06.8]} 38... Bf6 {[%clk
0:00:05.5]} 39. Ra3 {[%clk 0:00:06.5]} 39... Rc7 {[%clk 0:00:05.9]} 40. Ra6
{[%clk 0:00:06.9]} 40... Re7 {[%clk 0:00:06.3]} 41. Bf5 {[%clk 0:00:07]} 41...
Rb7 {[%clk 0:00:06.5]} 42. f3 {[%clk 0:00:07]} 42... Rb2+ {[%clk 0:00:06.6]} 43.
Kh3 {[%clk 0:00:07.3]} 43... Rb7 {[%clk 0:00:06.9]} 44. Kg4 {[%clk 0:00:07.6]}
44... Rc7 {[%clk 0:00:07.2]} 45. Be4 {[%clk 0:00:06.4]} 45... Rd7 {[%clk
0:00:07.3]} 46. Kf5 {[%clk 0:00:06.8]} 46... Bd8 {[%clk 0:00:05.5]} 47. Rg6+
{[%clk 0:00:07]} 47... Kf8 {[%clk 0:00:05.7]} 48. Ra6 {[%clk 0:00:04.7]} 48...
Rf7+ {[%clk 0:00:05.5]} 49. Kg6 {[%clk 0:00:05]} 49... Rg7+ {[%clk 0:00:05.7]}
50. Kh6 {[%clk 0:00:05.7]} 50... Rf7 {[%clk 0:00:05.6]} 51. Ra8 {[%clk
0:00:06.2]} 51... Rd7 {[%clk 0:00:04]} 52. Bf5 {[%clk 0:00:05.4]} 52... Rd6+
{[%clk 0:00:04.3]} 53. Kh5 {[%clk 0:00:05.7]} 53... Kg7 {[%clk 0:00:04.4]} 54.
Ra7+ {[%clk 0:00:06.2]} 54... Kf8 {[%clk 0:00:04.4]} 55. Bg6 {[%clk 0:00:06.1]}
55... Rf6 {[%clk 0:00:04.7]} 56. Be4 {[%clk 0:00:06.7]} 56... Rd6 {[%clk
0:00:05]} 57. Ra8 {[%clk 0:00:06.7]} 57... Kg7 {[%clk 0:00:05]} 58. Kg4 {[%clk
0:00:05.5]} 58... Kf6 {[%clk 0:00:04.7]} 59. Ra7 {[%clk 0:00:05.8]} 59... Be7
{[%clk 0:00:05.1]} 60. Ra8 {[%clk 0:00:05.6]} 60... Rd8 {[%clk 0:00:05.5]} 61.
Ra6+ {[%clk 0:00:05.5]} 61... Rd6 {[%clk 0:00:06]} 62. Ra2 {[%clk 0:00:06.4]}
62... Rd8 {[%clk 0:00:06.3]} 63. Ra5 {[%clk 0:00:07]} 63... Kg7 {[%clk
0:00:05.7]} 64. Ra7 {[%clk 0:00:07]} 64... Kf6 {[%clk 0:00:05.9]} 65. Ra6+
{[%clk 0:00:07.2]} 65... Kg7 {[%clk 0:00:06]} 66. Ra5 {[%clk 0:00:08.1]} 66...
Rd6 {[%clk 0:00:05.3]} 67. f4 {[%clk 0:00:09]} 67... gxf4 {[%clk 0:00:05.4]} 68.
gxf4 {[%clk 0:00:09.9]} 68... Kf7 {[%clk 0:00:04.4]} 69. Rh5 {[%clk 0:00:10.1]}
69... Kf8 {[%clk 0:00:04.2]} 70. Kf5 {[%clk 0:00:10.3]} 70... Rf6+ {[%clk
0:00:04.6]} 71. Ke5 {[%clk 0:00:10.8]} 71... Rb6 {[%clk 0:00:04.7]} 72. Rh8+
{[%clk 0:00:08.1]} 72... Kg7 {[%clk 0:00:05.2]} 73. Rh7+ {[%clk 0:00:08.8]}
73... Kf8 {[%clk 0:00:05.5]} 74. f5 {[%clk 0:00:09.5]} 74... Bd6+ {[%clk
0:00:04.2]} 75. Kd5 {[%clk 0:00:07.2]} 75... Be7 {[%clk 0:00:04.5]} 76. Bd3
{[%clk 0:00:06.7]} 76... Rd6+ {[%clk 0:00:04]} 77. Ke4 {[%clk 0:00:07.3]} 77...
Bf6 {[%clk 0:00:04.4]} 78. Rb7 {[%clk 0:00:04.6]} 78... Rd4+ {[%clk 0:00:04.7]}
79. Ke3 {[%clk 0:00:05.2]} 79... Rd6 {[%clk 0:00:04.9]} 80. Be4 {[%clk
0:00:05.7]} 80... Ke8 {[%clk 0:00:04.8]} 81. Kf4 {[%clk 0:00:06]} 81... Kf8
{[%clk 0:00:04.9]} 82. Kf3 {[%clk 0:00:06.3]} 82... Ke8 {[%clk 0:00:05.3]} 83.
Bc2 {[%clk 0:00:07]} 83... Kd8 {[%clk 0:00:05.8]} 84. Bb3 {[%clk 0:00:07.7]}
84... Rd7 {[%clk 0:00:06.3]} 85. Rb8+ {[%clk 0:00:07.7]} 85... Ke7 {[%clk
0:00:06.3]} 86. Be6 {[%clk 0:00:07.5]} 86... Rc7 {[%clk 0:00:06]} 87. Ke4 {[%clk
0:00:08]} 87... Ra7 {[%clk 0:00:05.6]} 88. Kd5 {[%clk 0:00:08.5]} 88... Ra5+
{[%clk 0:00:05.8]} 89. Ke4 {[%clk 0:00:08.9]} 89... Ra4+ {[%clk 0:00:06]} 90.
Kf3 {[%clk 0:00:09.5]} 90... Ra3+ {[%clk 0:00:06.5]} 91. Kg4 {[%clk 0:00:10.2]}
91... Ra4+ {[%clk 0:00:06.3]} 92. Kh3 {[%clk 0:00:07.7]} 92... Rh4+ {[%clk
0:00:06.3]} 93. Kg3 {[%clk 0:00:07.8]} 93... Be5+ {[%clk 0:00:05.6]} 94. Kxh4
{[%clk 0:00:08.3]} 94... Bxb8 {[%clk 0:00:06.4]} 95. Kg5 {[%clk 0:00:09.2]}
95... Be5 {[%clk 0:00:06.7]} 96. Kg6 {[%clk 0:00:10.1]} 96... Bf6 {[%clk
0:00:07]} 97. Bg8 {[%clk 0:00:10.3]} 97... Ba1 {[%clk 0:00:07.9]} 98. f6+ {[%clk
0:00:11.2]} 98... Bxf6 {[%clk 0:00:08]} 1/2-1/2

[Event "Early-Titled-Tuesday-Blitz-April-23-2024"]
[Site "Chess.com"]
[Date "2024.04.23"]
[Round "8"]
[White "RodTwinkz"]
[Black "BardArtem"]
[Result "1-0"]
[WhiteElo "2701"]
[BlackElo "2840"]
[TimeControl "180+1"]
[EndTime "9:35:31 PDT"]
[Termination "RodTwinkz won on time"]

1. e4 {[%clk 0:02:58.2]} 1... d5 {[%clk 0:02:55.4]} 2. Nc3 {[%clk 0:02:57.1]}
2... dxe4 {[%clk 0:02:55.5]} 3. Nxe4 {[%clk 0:02:58]} 3... Qd5 {[%clk
0:02:55.5]} 4. Nc3 {[%clk 0:02:57.5]} 4... Qe5+ {[%clk 0:02:55.5]} 5. Qe2 {[%clk
0:02:55.9]} 5... Qxe2+ {[%clk 0:02:54.6]} 6. Bxe2 {[%clk 0:02:56.8]} 6... c6
{[%clk 0:02:55.2]} 7. Nf3 {[%clk 0:02:56.6]} 7... Nf6 {[%clk 0:02:54.5]} 8. d4
{[%clk 0:02:56.9]} 8... Bf5 {[%clk 0:02:54.4]} 9. Bd1 {[%clk 0:02:46.5]} 9... h6
{[%clk 0:02:53.2]} 10. Ne2 {[%clk 0:02:42.9]} 10... e6 {[%clk 0:02:52.4]} 11. c3
{[%clk 0:02:43]} 11... Nbd7 {[%clk 0:02:52.3]} 12. Ng3 {[%clk 0:02:43.2]} 12...
Bh7 {[%clk 0:02:52]} 13. O-O {[%clk 0:02:43.4]} 13... Bd6 {[%clk 0:02:50.9]} 14.
Re1 {[%clk 0:02:43.5]} 14... O-O-O {[%clk 0:02:51]} 15. Ne5 {[%clk 0:02:40.3]}
15... Nxe5 {[%clk 0:02:49]} 16. dxe5 {[%clk 0:02:41.2]} 16... Bxe5 {[%clk
0:02:49.4]} 17. Be3 {[%clk 0:02:19.8]} 17... Bc7 {[%clk 0:02:40.8]} 18. a4
{[%clk 0:02:14.9]} 18... a6 {[%clk 0:02:39.4]} 19. Bd4 {[%clk 0:02:02.3]} 19...
Rhe8 {[%clk 0:02:36.7]} 20. Nh5 {[%clk 0:01:58.6]} 20... e5 {[%clk 0:02:30.4]}
21. Nxf6 {[%clk 0:01:47.3]} 21... gxf6 {[%clk 0:02:31.3]} 22. Be3 {[%clk
0:01:46.2]} 22... f5 {[%clk 0:02:24.1]} 23. Bxh6 {[%clk 0:01:38.1]} 23... e4
{[%clk 0:01:59.5]} 24. g3 {[%clk 0:01:21.7]} 24... Bg6 {[%clk 0:00:56.3]} 25.
Bg5 {[%clk 0:01:14]} 25... Rd7 {[%clk 0:00:53.4]} 26. h4 {[%clk 0:01:04.3]}
26... Rg8 {[%clk 0:00:46]} 27. Kh2 {[%clk 0:01:01.3]} 27... Bb6 {[%clk
0:00:30.9]} 28. Kg2 {[%clk 0:00:44.1]} 28... Bh7 {[%clk 0:00:07.6]} 29. Bb3
{[%clk 0:00:39.4]} 29... Bg6 {[%clk 0:00:03.4]} 30. Rad1 {[%clk 0:00:36.8]}
30... Re8 {[%clk 0:00:02.8]} 31. Rxd7 {[%clk 0:00:35]} 31... Kxd7 {[%clk
0:00:03.7]} 32. Rd1+ {[%clk 0:00:34.7]} 32... Kc8 {[%clk 0:00:04]} 33. Rh1
{[%clk 0:00:29.4]} 33... Bh5 {[%clk 0:00:04.2]} 34. Bd1 {[%clk 0:00:29.1]} 34...
Bxd1 {[%clk 0:00:02.3]} 35. Rxd1 {[%clk 0:00:30]} 35... Bc7 {[%clk 0:00:02.1]}
36. Rh1 {[%clk 0:00:26.9]} 36... Rg8 {[%clk 0:00:02.3]} 37. Kf1 {[%clk
0:00:23.7]} 37... Kd7 {[%clk 0:00:01.9]} 38. Ke2 {[%clk 0:00:21.4]} 38... Ke6
{[%clk 0:00:02.3]} 39. Be3 {[%clk 0:00:22]} 39... Be5 {[%clk 0:00:02.5]} 40. h5
{[%clk 0:00:20.6]} 40... Rh8 {[%clk 0:00:03.1]} 41. h6 {[%clk 0:00:20.7]} 41...
Kf6 {[%clk 0:00:02.9]} 42. Rd1 {[%clk 0:00:20.9]} 42... Ke6 {[%clk 0:00:02.4]}
43. Rc1 {[%clk 0:00:19.6]} 43... b5 {[%clk 0:00:02.7]} 44. axb5 {[%clk
0:00:19.2]} 44... axb5 {[%clk 0:00:03.6]} 45. Ra1 {[%clk 0:00:20.1]} 45... Kd5
{[%clk 0:00:02.7]} 46. Ra7 {[%clk 0:00:19.4]} 46... Rh7 {[%clk 0:00:03.3]} 47.
Ra8 {[%clk 0:00:18.2]} 47... Kc4 {[%clk 0:00:03]} 48. Rc8 {[%clk 0:00:17.2]}
48... Kd5 {[%clk 0:00:02]} 49. Rd8+ {[%clk 0:00:15.5]} 49... Ke6 {[%clk
0:00:02.2]} 50. Re8+ {[%clk 0:00:12.6]} 50... Kd5 {[%clk 0:00:02.5]} 51. Rd8+
{[%clk 0:00:12.1]} 51... Ke6 {[%clk 0:00:02.8]} 52. Kd2 {[%clk 0:00:12.7]} 52...
Bf6 {[%clk 0:00:02]} 53. Rc8 {[%clk 0:00:12.5]} 53... Kd7 {[%clk 0:00:02]} 54.
Ra8 {[%clk 0:00:12.4]} 54... Be5 {[%clk 0:00:02]} 55. Ra7+ {[%clk 0:00:12.3]}
55... Ke6 {[%clk 0:00:02.2]} 56. Kc2 {[%clk 0:00:13.2]} 56... Bd6 {[%clk
0:00:02.3]} 57. b3 {[%clk 0:00:13.1]} 57... Bf8 {[%clk 0:00:02.6]} 58. Ra6
{[%clk 0:00:12.3]} 58... Kd5 {[%clk 0:00:02.2]} 59. c4+ {[%clk 0:00:11.6]} 59...
bxc4 {[%clk 0:00:03.1]} 60. bxc4+ {[%clk 0:00:12.5]} 60... Kxc4 {[%clk 0:00:04]}
61. Rxc6+ {[%clk 0:00:12.6]} 61... Kd5 {[%clk 0:00:04.6]} 62. Ra6 {[%clk
0:00:12.4]} 62... Ke5 {[%clk 0:00:03.2]} 63. Bf4+ {[%clk 0:00:11.5]} 63... Kd5
{[%clk 0:00:03.4]} 64. Kd2 {[%clk 0:00:12.4]} 64... Kd4 {[%clk 0:00:02.8]} 65.
Ke2 {[%clk 0:00:12.3]} 65... Kc4 {[%clk 0:00:03]} 66. Rf6 {[%clk 0:00:11.8]}
66... Kd5 {[%clk 0:00:02.8]} 67. Rxf5+ {[%clk 0:00:12.2]} 67... Ke6 {[%clk
0:00:02.8]} 68. Re5+ {[%clk 0:00:12.2]} 68... Kf6 {[%clk 0:00:03.1]} 69. Rxe4
{[%clk 0:00:13]} 69... Bxh6 {[%clk 0:00:03.3]} 70. Bxh6 {[%clk 0:00:12]} 70...
Rxh6 {[%clk 0:00:04.2]} 71. Ra4 {[%clk 0:00:12.7]} 71... Kg7 {[%clk 0:00:04.1]}
72. Rg4+ {[%clk 0:00:12.7]} 72... Kf8 {[%clk 0:00:04.1]} 73. Kf3 {[%clk
0:00:13.6]} 73... Rf6+ {[%clk 0:00:04.5]} 74. Rf4 {[%clk 0:00:14.5]} 74... Rb6
{[%clk 0:00:05.4]} 75. g4 {[%clk 0:00:15]} 75... Rb3+ {[%clk 0:00:05.7]} 76. Kg2
{[%clk 0:00:15.6]} 76... Kg7 {[%clk 0:00:06.4]} 77. Rf3 {[%clk 0:00:15.4]} 77...
Rb4 {[%clk 0:00:06.5]} 78. Kg3 {[%clk 0:00:16.3]} 78... Rb1 {[%clk 0:00:06.7]}
79. Rf4 {[%clk 0:00:17.2]} 79... Rg1+ {[%clk 0:00:06.9]} 80. Kf3 {[%clk
0:00:17.3]} 80... Rb1 {[%clk 0:00:07.8]} 81. Rf5 {[%clk 0:00:17.7]} 81... Rb3+
{[%clk 0:00:08.2]} 82. Kg2 {[%clk 0:00:18.3]} 82... Kg6 {[%clk 0:00:08.8]} 83.
Rf3 {[%clk 0:00:18.2]} 83... Rb4 {[%clk 0:00:09.4]} 84. Kg3 {[%clk 0:00:19.1]}
84... Rb1 {[%clk 0:00:08.6]} 85. Re3 {[%clk 0:00:19.1]} 85... Rg1+ {[%clk
0:00:08.7]} 86. Kf3 {[%clk 0:00:19.5]} 86... Ra1 {[%clk 0:00:09.6]} 87. Rd3
{[%clk 0:00:19.2]} 87... f6 {[%clk 0:00:09.7]} 88. Kf4 {[%clk 0:00:18.8]} 88...
Ra4+ {[%clk 0:00:09.8]} 89. Kg3 {[%clk 0:00:19.3]} 89... Ra1 {[%clk 0:00:10.7]}
90. f4 {[%clk 0:00:18.6]} 90... Rg1+ {[%clk 0:00:11.1]} 91. Kf3 {[%clk
0:00:19.1]} 91... Rf1+ {[%clk 0:00:11.5]} 92. Ke4 {[%clk 0:00:19.2]} 92... Re1+
{[%clk 0:00:11.8]} 93. Re3 {[%clk 0:00:19.7]} 93... Ra1 {[%clk 0:00:09.8]} 94.
Kf3 {[%clk 0:00:19.4]} 94... Rf1+ {[%clk 0:00:09.3]} 95. Kg3 {[%clk 0:00:19.4]}
95... Rg1+ {[%clk 0:00:09.7]} 96. Kh4 {[%clk 0:00:19.8]} 96... Rh1+ {[%clk
0:00:10]} 97. Rh3 {[%clk 0:00:20]} 97... Rf1 {[%clk 0:00:09.5]} 98. f5+ {[%clk
0:00:20.9]} 98... Kg7 {[%clk 0:00:09.8]} 99. Kh5 {[%clk 0:00:19.3]} 99... Rb1
{[%clk 0:00:07.9]} 100. g5 {[%clk 0:00:17.9]} 100... fxg5 {[%clk 0:00:07.5]}
101. Kxg5 {[%clk 0:00:18.8]} 101... Rb6 {[%clk 0:00:04.3]} 102. Rc3 {[%clk
0:00:17.3]} 102... Kf8 {[%clk 0:00:04.6]} 103. Rc8+ {[%clk 0:00:16.2]} 103...
Kf7 {[%clk 0:00:04.5]} 104. Rc7+ {[%clk 0:00:17.1]} 104... Kf8 {[%clk 0:00:05]}
105. Rd7 {[%clk 0:00:16]} 105... Ra6 {[%clk 0:00:05.1]} 106. Rh7 {[%clk
0:00:15.9]} 106... Rb6 {[%clk 0:00:05.4]} 107. Rc7 {[%clk 0:00:14.4]} 107... Ra6
{[%clk 0:00:05.4]} 108. Rb7 {[%clk 0:00:14.7]} 108... Rc6 {[%clk 0:00:05.5]}
109. Ra7 {[%clk 0:00:14.7]} 109... Rd6 {[%clk 0:00:05.8]} 110. Rc7 {[%clk
0:00:14.1]} 110... Rb6 {[%clk 0:00:06]} 111. Kf4 {[%clk 0:00:12.9]} 111... Ra6
{[%clk 0:00:04]} 112. Rc5 {[%clk 0:00:10.4]} 112... Kf7 {[%clk 0:00:02.3]} 113.
Kg5 {[%clk 0:00:10.9]} 113... Rb6 {[%clk 0:00:02.5]} 114. f6 {[%clk 0:00:09.8]}
114... Kf8 {[%clk 0:00:01.5]} 115. Kg6 {[%clk 0:00:09.4]} 115... Rb8 {[%clk
0:00:01.3]} 116. Rh5 {[%clk 0:00:09.5]} 1-0

[Event "Early-Titled-Tuesday-Blitz-April-23-2024"]
[Site "Chess.com"]
[Date "2024.04.23"]
[Round "9"]
[White "Road2GM3000"]
[Black "whiteglovethief"]
[Result "0-1"]
[WhiteElo "2439"]
[BlackElo "2578"]
[TimeControl "180+1"]
[EndTime "9:43:37 PDT"]
[Termination "whiteglovethief won by resignation"]

1. d4 {[%clk 0:02:50.9]} 1... Nf6 {[%clk 0:02:59.5]} 2. c4 {[%clk 0:02:50.9]}
2... c5 {[%clk 0:02:59.6]} 3. d5 {[%clk 0:02:51]} 3... b5 {[%clk 0:02:59.8]} 4.
Qc2 {[%clk 0:02:50.7]} 4... d6 {[%clk 0:02:54]} 5. e4 {[%clk 0:02:50.5]} 5... b4
{[%clk 0:02:53.4]} 6. f4 {[%clk 0:02:49.9]} 6... Nbd7 {[%clk 0:02:52.3]} 7. Nf3
{[%clk 0:02:48.8]} 7... g6 {[%clk 0:02:52]} 8. Bd3 {[%clk 0:02:49.4]} 8... Bg7
{[%clk 0:02:52.2]} 9. O-O {[%clk 0:02:50.1]} 9... O-O {[%clk 0:02:51.9]} 10. f5
{[%clk 0:02:50.7]} 10... a5 {[%clk 0:02:47.7]} 11. Bg5 {[%clk 0:02:45.6]} 11...
Ng4 {[%clk 0:02:37.3]} 12. Nbd2 {[%clk 0:02:41.7]} 12... h6 {[%clk 0:02:35.8]}
13. Bf4 {[%clk 0:02:40.2]} 13... g5 {[%clk 0:02:34.4]} 14. Bg3 {[%clk
0:02:35.1]} 14... Ne3 {[%clk 0:02:32.4]} 15. Qd1 {[%clk 0:02:35.4]} 15... Nxd1
{[%clk 0:02:32.1]} 0-1

[Event "Early-Titled-Tuesday-Blitz-April-23-2024"]
[Site "Chess.com"]
[Date "2024.04.23"]
[Round "9"]
[White "Alexei_Gubajdullin"]
[Black "thesupera12"]
[Result "1-0"]
[WhiteElo "2606"]
[BlackElo "2446"]
[TimeControl "180+1"]
[EndTime "9:44:35 PDT"]
[Termination "Alexei_Gubajdullin won by resignation"]

1. Nf3 {[%clk 0:02:59]} 1... g6 {[%clk 0:02:56.8]} 2. g3 {[%clk 0:02:58.9]} 2...
Bg7 {[%clk 0:02:56.9]} 3. Bg2 {[%clk 0:02:58.8]} 3... d5 {[%clk 0:02:56.3]} 4.
O-O {[%clk 0:02:58.5]} 4... c5 {[%clk 0:02:56.7]} 5. d3 {[%clk 0:02:58.4]} 5...
Nc6 {[%clk 0:02:56.5]} 6. Nbd2 {[%clk 0:02:57.8]} 6... Nf6 {[%clk 0:02:55.9]} 7.
e4 {[%clk 0:02:54.4]} 7... O-O {[%clk 0:02:56.1]} 8. Re1 {[%clk 0:02:44.3]} 8...
Bg4 {[%clk 0:02:53]} 9. h3 {[%clk 0:02:43.6]} 9... Bxf3 {[%clk 0:02:52.9]} 10.
Bxf3 {[%clk 0:02:43.5]} 10... dxe4 {[%clk 0:02:52.7]} 11. dxe4 {[%clk 0:02:43]}
11... Qc7 {[%clk 0:02:48.1]} 12. c3 {[%clk 0:02:40]} 12... Rfd8 {[%clk
0:02:43.9]} 13. Qc2 {[%clk 0:02:39.6]} 13... Ne5 {[%clk 0:02:42.9]} 14. Be2
{[%clk 0:02:39.4]} 14... Rd7 {[%clk 0:02:37.6]} 15. f4 {[%clk 0:02:38.6]} 15...
Nc6 {[%clk 0:02:36.5]} 16. e5 {[%clk 0:02:38.1]} 16... Nd5 {[%clk 0:02:35.7]}
17. Ne4 {[%clk 0:02:37.6]} 17... b6 {[%clk 0:02:29.6]} 18. e6 {[%clk 0:02:34.9]}
18... fxe6 {[%clk 0:02:27.7]} 19. Ng5 {[%clk 0:02:34.7]} 19... Nd8 {[%clk
0:02:23.8]} 20. Bg4 {[%clk 0:02:33.2]} 20... h5 {[%clk 0:02:09.8]} 21. Bxe6+
{[%clk 0:02:28.4]} 21... Nxe6 {[%clk 0:02:09.6]} 22. Nxe6 {[%clk 0:02:28.8]}
22... Qd6 {[%clk 0:02:06.8]} 23. Qxg6 {[%clk 0:02:28.1]} 1-0

[Event "Early-Titled-Tuesday-Blitz-April-23-2024"]
[Site "Chess.com"]
[Date "2024.04.23"]
[Round "9"]
[White "AlainBruxelles"]
[Black "Bilan_Danila"]
[Result "0-1"]
[WhiteElo "2362"]
[BlackElo "2551"]
[TimeControl "180+1"]
[EndTime "9:45:43 PDT"]
[Termination "Bilan_Danila won by resignation"]

1. e4 {[%clk 0:03:00.9]} 1... c6 {[%clk 0:03:00.2]} 2. d4 {[%clk 0:03:00]} 2...
d5 {[%clk 0:03:01.1]} 3. exd5 {[%clk 0:03:00.6]} 3... cxd5 {[%clk 0:03:01.5]} 4.
c4 {[%clk 0:03:01.4]} 4... Nf6 {[%clk 0:03:00.7]} 5. Nc3 {[%clk 0:03:01.6]} 5...
Nc6 {[%clk 0:03:01.3]} 6. Bg5 {[%clk 0:03:00.5]} 6... e6 {[%clk 0:03:01]} 7. Nf3
{[%clk 0:02:59.3]} 7... Be7 {[%clk 0:03:00.5]} 8. c5 {[%clk 0:02:58.8]} 8... O-O
{[%clk 0:02:58.5]} 9. Bd3 {[%clk 0:02:58.3]} 9... b6 {[%clk 0:02:56.7]} 10. cxb6
{[%clk 0:02:58.6]} 10... Qxb6 {[%clk 0:02:52.7]} 11. b3 {[%clk 0:02:48.6]} 11...
h6 {[%clk 0:02:34]} 12. Bh4 {[%clk 0:02:40.3]} 12... Bb4 {[%clk 0:02:20.4]} 13.
Rc1 {[%clk 0:02:27]} 13... Ne4 {[%clk 0:02:16.2]} 14. Bxe4 {[%clk 0:02:20.3]}
14... dxe4 {[%clk 0:02:17.1]} 15. Ne5 {[%clk 0:02:14.3]} 15... Nxe5 {[%clk
0:01:50]} 16. dxe5 {[%clk 0:02:13]} 16... Ba6 {[%clk 0:01:49.4]} 17. f3 {[%clk
0:01:38.7]} 17... Qe3+ {[%clk 0:01:40.5]} 0-1

[Event "Early-Titled-Tuesday-Blitz-April-23-2024"]
[Site "Chess.com"]
[Date "2024.04.23"]
[Round "9"]
[White "Javadovvv"]
[Black "sokidze"]
[Result "0-1"]
[WhiteElo "2654"]
[BlackElo "2809"]
[TimeControl "180+1"]
[EndTime "9:46:01 PDT"]
[Termination "sokidze won by resignation"]

1. d4 {[%clk 0:02:58.6]} 1... d5 {[%clk 0:02:58.6]} 2. Nf3 {[%clk 0:02:59.2]}
2... Nf6 {[%clk 0:02:58.4]} 3. Bf4 {[%clk 0:02:59.8]} 3... e6 {[%clk 0:02:59]}
4. e3 {[%clk 0:03:00.1]} 4... Bd6 {[%clk 0:02:59.6]} 5. Bg3 {[%clk 0:03:00.5]}
5... O-O {[%clk 0:03:00.2]} 6. Nbd2 {[%clk 0:03:01.3]} 6... c5 {[%clk
0:03:00.8]} 7. c3 {[%clk 0:03:01.8]} 7... Qc7 {[%clk 0:03:01.4]} 8. Bd3 {[%clk
0:03:02.5]} 8... Nbd7 {[%clk 0:03:01.7]} 9. O-O {[%clk 0:03:02.5]} 9... b6
{[%clk 0:02:56]} 10. e4 {[%clk 0:03:00.5]} 10... Bxg3 {[%clk 0:02:52.6]} 11.
hxg3 {[%clk 0:03:00.1]} 11... cxd4 {[%clk 0:02:53.1]} 12. cxd4 {[%clk
0:02:57.6]} 12... dxe4 {[%clk 0:02:53.1]} 13. Nxe4 {[%clk 0:02:58.5]} 13... Bb7
{[%clk 0:02:51.3]} 14. Qe2 {[%clk 0:02:58.3]} 14... Rac8 {[%clk 0:02:45.1]} 15.
Rad1 {[%clk 0:02:52]} 15... Nxe4 {[%clk 0:02:42.6]} 16. Bxe4 {[%clk 0:02:52.9]}
16... Nf6 {[%clk 0:02:43.1]} 17. Bb1 {[%clk 0:02:47.9]} 17... Qc4 {[%clk
0:02:38.2]} 18. Qe3 {[%clk 0:02:44.7]} 18... Rfd8 {[%clk 0:02:34.7]} 19. Rd2
{[%clk 0:02:41.2]} 19... Qd5 {[%clk 0:02:23.3]} 20. Rfd1 {[%clk 0:02:39.2]}
20... h6 {[%clk 0:02:12.8]} 21. Qf4 {[%clk 0:02:35]} 21... Rd6 {[%clk
0:02:09.3]} 22. Re2 {[%clk 0:02:30.3]} 22... Rcd8 {[%clk 0:02:05.3]} 23. Red2
{[%clk 0:02:22.1]} 23... a5 {[%clk 0:01:46.3]} 24. Qe5 {[%clk 0:02:16.7]} 24...
Ng4 {[%clk 0:01:24.4]} 25. Qf4 {[%clk 0:02:12.4]} 25... Qh5 {[%clk 0:01:24.2]}
26. Be4 {[%clk 0:02:05.3]} 26... g5 {[%clk 0:01:22.2]} 0-1

[Event "Early-Titled-Tuesday-Blitz-April-23-2024"]
[Site "Chess.com"]
[Date "2024.04.23"]
[Round "9"]
[White "FuenfgegenWilly"]
[Black "SharapovEvgeny"]
[Result "0-1"]
[WhiteElo "2483"]
[BlackElo "2630"]
[TimeControl "180+1"]
[EndTime "9:46:05 PDT"]
[Termination "SharapovEvgeny won on time"]

1. d4 {[%clk 0:03:00.9]} 1... d5 {[%clk 0:02:59.6]} 2. c4 {[%clk 0:03:00.9]}
2... c6 {[%clk 0:03:00.2]} 3. cxd5 {[%clk 0:03:01.4]} 3... cxd5 {[%clk
0:02:59.2]} 4. Nc3 {[%clk 0:03:02.3]} 4... Nf6 {[%clk 0:02:59.5]} 5. Bf4 {[%clk
0:03:02.7]} 5... Nc6 {[%clk 0:02:59.8]} 6. e3 {[%clk 0:03:02.5]} 6... a6 {[%clk
0:03:00.3]} 7. Bd3 {[%clk 0:03:02.2]} 7... Bg4 {[%clk 0:02:59.6]} 8. f3 {[%clk
0:03:02.5]} 8... Bh5 {[%clk 0:02:59.4]} 9. g4 {[%clk 0:03:02.5]} 9... Bg6 {[%clk
0:02:59.3]} 10. h4 {[%clk 0:03:03.2]} 10... Bxd3 {[%clk 0:02:58.2]} 11. Qxd3
{[%clk 0:03:04.1]} 11... e6 {[%clk 0:02:58.8]} 12. Nge2 {[%clk 0:03:00]} 12...
Be7 {[%clk 0:02:58.7]} 13. Kf2 {[%clk 0:03:00.4]} 13... h5 {[%clk 0:02:46.4]}
14. g5 {[%clk 0:02:58.8]} 14... Nd7 {[%clk 0:02:45.9]} 15. Rac1 {[%clk
0:02:38.8]} 15... g6 {[%clk 0:02:44.1]} 16. Rhd1 {[%clk 0:02:26.7]} 16... O-O
{[%clk 0:02:43.5]} 17. e4 {[%clk 0:02:26.4]} 17... Nb6 {[%clk 0:02:43.2]} 0-1